Department Family,Entity,Date Paid,Expense Type,Expense Area,Supplier Name,Transaction Reference,    Total    
Department of Health,Chelsea & Westminster NHS Foundation Trust,01/07/2023,Rates & Council Tax,Chelsea Site,Royal Borough Of Kensington And Chelsea,629848928JUN23,"248,444.00"
Department of Health,Chelsea & Westminster NHS Foundation Trust,04/07/2023,Agency Nurse - Band 5,Chelsea Site,Care Providers Ltd,CH3217,"116,940.12"
Department of Health,Chelsea & Westminster NHS Foundation Trust,04/07/2023,Services From Non Nhs Org,General Surgery,Healthshare Diagnostics Ltd,1360137,"99,944.00"
Department of Health,Chelsea & Westminster NHS Foundation Trust,04/07/2023,Services From Non Nhs Org,General Surgery,Rostra Healthcare Ltd,05230080/CW,"26,787.58"
Department of Health,Chelsea & Westminster NHS Foundation Trust,04/07/2023,Drugs,Chelsea Pharmacy,Alliance Healthcare (Distribution ) Ltd,A36655479,"36,471.87"
Department of Health,Chelsea & Westminster NHS Foundation Trust,04/07/2023,Drugs,Chelsea Pharmacy,Alliance Healthcare (Distribution ) Ltd,A36D55417,"29,297.32"
Department of Health,Chelsea & Westminster NHS Foundation Trust,04/07/2023,Drugs,Chelsea Pharmacy,Alliance Healthcare (Distribution ) Ltd,A36M55673,"41,259.61"
Department of Health,Chelsea & Westminster NHS Foundation Trust,04/07/2023,Drugs,Chelsea Pharmacy,Alliance Healthcare (Distribution ) Ltd,A36U55557,"35,502.60"
Department of Health,Chelsea & Westminster NHS Foundation Trust,04/07/2023,Drugs,Chelsea Pharmacy,Janssen-Cilag Ltd,,"25,764.00"
Department of Health,Chelsea & Westminster NHS Foundation Trust,04/07/2023,Drugs,West Middlesex Pharmacy,Roche Products Ltd,1322286665,"32,356.61"
Department of Health,Chelsea & Westminster NHS Foundation Trust,04/07/2023,Soft Services,Trust-wide,Iss Mediclean Limited,SI3566509,"62,419.42"
Department of Health,Chelsea & Westminster NHS Foundation Trust,04/07/2023,Managed Service Contract,Cardiac Cath Lab,Medtronic Limited,1205481332,"139,420.61"
Department of Health,Chelsea & Westminster NHS Foundation Trust,04/07/2023,Radiology Maintenance Contract,Radiology,Nhs Supply Chain Maintenance (201),2124001904,"91,479.60"
Department of Health,Chelsea & Westminster NHS Foundation Trust,06/07/2023,Building Expenditure,Pharmacy Aseptic Suite Room,Axis Europe Plc,9000030700,"89,718.00"
Department of Health,Chelsea & Westminster NHS Foundation Trust,06/07/2023,Minor Works,Trust-wide,Trail Group Limited,6255,"26,905.68"
Department of Health,Chelsea & Westminster NHS Foundation Trust,06/07/2023,Minor Works,Trust-wide,Trail Group Limited,6302,"57,771.00"
Department of Health,Chelsea & Westminster NHS Foundation Trust,06/07/2023,Recruitment Expenses,Director Of Nursing,Medox Paramedical Ltd T/ S  Drake Medox,304990,"43,680.00"
Department of Health,Chelsea & Westminster NHS Foundation Trust,06/07/2023,Rent Rates & Service Charge,Mass Vaccination Roving,Quality Trusted Solutions,64780557,"30,010.33"
Department of Health,Chelsea & Westminster NHS Foundation Trust,06/07/2023,Gum Contract,Hiv,Imperial College Healthcare Nhs Trust,H0315986,"1,000,709.68"
Department of Health,Chelsea & Westminster NHS Foundation Trust,06/07/2023,Drugs,Chelsea Pharmacy,Alloga Uk Limited,SIN103813027,"32,108.30"
Department of Health,Chelsea & Westminster NHS Foundation Trust,06/07/2023,Drugs,Chelsea Pharmacy,Csl Behring Uk Ltd,994057209,"61,296.30"
Department of Health,Chelsea & Westminster NHS Foundation Trust,06/07/2023,Drugs,West Middlesex Pharmacy,Roche Products Ltd,1322287279,"33,211.87"
Department of Health,Chelsea & Westminster NHS Foundation Trust,06/07/2023,Clinical Supplies,Divisional Areas,Nhs Supply Chain Maintenance (201),1124060604,"82,626.11"
Department of Health,Chelsea & Westminster NHS Foundation Trust,06/07/2023,Clinical Supplies,Divisional Areas,Nhs Supply Chain Roarp (101),1124061026,"148,956.44"
Department of Health,Chelsea & Westminster NHS Foundation Trust,06/07/2023,Clinical Supplies,Divisional Areas,Nhs Supply Chain Roarp (101),1124066396,"65,200.23"
Department of Health,Chelsea & Westminster NHS Foundation Trust,06/07/2023,Telephone Rental-Computer,Trust-wide,Bt Payment Services Ltd,73936770M033012,"44,171.76"
Department of Health,Chelsea & Westminster NHS Foundation Trust,06/07/2023,Staff Uniform,Corporate Integration Nursing,Oflynn Innovation,10427,"29,500.00"
Department of Health,Chelsea & Westminster NHS Foundation Trust,06/07/2023,Consultant Recharge,Dermatology Management,Healthcare Business Solutions (Uk) Ltd,2503,"112,419.63"
Department of Health,Chelsea & Westminster NHS Foundation Trust,06/07/2023,Consultant Recharge,Dermatology Management,Healthcare Business Solutions (Uk) Ltd,CN-2679,"-112,419.63"
Department of Health,Chelsea & Westminster NHS Foundation Trust,06/07/2023,General Management Contract,Dermatology Management,Healthcare Business Solutions (Uk) Ltd,2645,"59,730.00"
Department of Health,Chelsea & Westminster NHS Foundation Trust,06/07/2023,Research & Development Exp,Pioneer,Imperial College London,10198356,"30,209.15"
Department of Health,Chelsea & Westminster NHS Foundation Trust,11/07/2023,Drugs,Hiv Drugs - Herts,West Hertfordshire Hospitals Nhs Trust,276836,"393,179.54"
Department of Health,Chelsea & Westminster NHS Foundation Trust,11/07/2023,General Maintenance Contracts,Radiology,Fujifilm Uk Ltd,9333333416,"39,946.15"
Department of Health,Chelsea & Westminster NHS Foundation Trust,11/07/2023,Transport ,Trust-wide,Hats Group Ltd,224438,"70,352.16"
Department of Health,Chelsea & Westminster NHS Foundation Trust,11/07/2023,Transport ,Trust-wide,Hats Group Ltd,224437,"36,745.52"
Department of Health,Chelsea & Westminster NHS Foundation Trust,11/07/2023,Transport ,Trust-wide,Hats Group Ltd,224436,"170,873.16"
Department of Health,Chelsea & Westminster NHS Foundation Trust,11/07/2023,Drugs,Chelsea Pharmacy,Bayer Plc,824C498217,"27,373.68"
Department of Health,Chelsea & Westminster NHS Foundation Trust,11/07/2023,Drugs,Chelsea Pharmacy,Alloga Uk Limited,SIN103818429,"36,000.00"
Department of Health,Chelsea & Westminster NHS Foundation Trust,11/07/2023,Drugs,Chelsea Pharmacy,Gilead Sciences Ltd,4410250648,"36,444.00"
Department of Health,Chelsea & Westminster NHS Foundation Trust,11/07/2023,Drugs,West Middlesex Pharmacy,Csl Behring Uk Ltd,994057107,"61,296.26"
Department of Health,Chelsea & Westminster NHS Foundation Trust,11/07/2023,Water,Estate Management Department,Castle Water Ltd,TE00445554,"46,547.52"
Department of Health,Chelsea & Westminster NHS Foundation Trust,11/07/2023,Consultant Recharge,Dermatology Management,Healthcare Business Solutions (Uk) Ltd,2680,"112,419.63"
Department of Health,Chelsea & Westminster NHS Foundation Trust,11/07/2023,Gas,Trust-wide,Total Gas & Power Ltd,303863279/23,"372,145.06"
Department of Health,Chelsea & Westminster NHS Foundation Trust,11/07/2023,Commercial Rents and Service Charge,Dean St Facilities,Assura Aspire Ltd,LINV57731,"35,906.30"
Department of Health,Chelsea & Westminster NHS Foundation Trust,11/07/2023,Specialty Registrar Ft (Str1),Hee Income,Royal Free London Nhs Foundation Trust,I0219176,"148,580.75"
Department of Health,Chelsea & Westminster NHS Foundation Trust,13/07/2023,Agency Nurse - Band 5,Chelsea Site,Care Providers Ltd,CH3302,"136,771.34"
Department of Health,Chelsea & Westminster NHS Foundation Trust,13/07/2023,Agency Nurse - Band 5,Chelsea Site,Care Providers Ltd,CH3459,"113,177.47"
Department of Health,Chelsea & Westminster NHS Foundation Trust,13/07/2023,Agency Nurse - Band 5,Chelsea Site,Care Providers Ltd,CH4014,"138,008.71"
Department of Health,Chelsea & Westminster NHS Foundation Trust,13/07/2023,Building Expenditure,WM Diagnostic Centre,Thames Water Utilities Ltd,CBO2300440,"87,360.00"
Department of Health,Chelsea & Westminster NHS Foundation Trust,13/07/2023,Building Expenditure,Roof Replacement,Vector Foiltec Ltd,VFINV-0374,"110,818.62"
Department of Health,Chelsea & Westminster NHS Foundation Trust,13/07/2023,General Maintenance Contracts,Trust-wide,Jca Engineering Limited,INV-N10161,"468,634.88"
Department of Health,Chelsea & Westminster NHS Foundation Trust,13/07/2023,M.S.S.E. - Routine Purchases,Trauma & Orthopaedics,Opcare Ltd,OP-SI-051089,"40,640.66"
Department of Health,Chelsea & Westminster NHS Foundation Trust,13/07/2023,M.S.S.E. - Routine Purchases,Trauma & Orthopaedics,Opcare Ltd,OP-SI-051315,"58,740.52"
Department of Health,Chelsea & Westminster NHS Foundation Trust,13/07/2023,Drugs,West Middlesex Pharmacy,Roche Products Ltd,1322287904,"41,109.60"
Department of Health,Chelsea & Westminster NHS Foundation Trust,13/07/2023,Donations & Subscriptions,Staff Benefits & Well Being,Liva Healthcare Uk,INV-0367,"30,000.00"
Department of Health,Chelsea & Westminster NHS Foundation Trust,13/07/2023,Transport ,Trust-wide,Hats Group Ltd,224360,"97,566.56"
Department of Health,Chelsea & Westminster NHS Foundation Trust,13/07/2023,Transport ,Trust-wide,Hats Group Ltd,224756,"52,079.77"
Department of Health,Chelsea & Westminster NHS Foundation Trust,13/07/2023,Transport ,Trust-wide,Hats Group Ltd,201885,"-97,566.56"
Department of Health,Chelsea & Westminster NHS Foundation Trust,13/07/2023,Postage,Clin Admin Management Team,Synertec Ltd,QS350971,"25,506.77"
Department of Health,Chelsea & Westminster NHS Foundation Trust,13/07/2023,Inpatient and Day Case Activity,Radiology Department,Medica Reporting Ltd (Medica Group),SI106684,"75,000.00"
Department of Health,Chelsea & Westminster NHS Foundation Trust,13/07/2023,External Audit Fees,Director Of Finance,Deloitte Llp,8003586110,"77,019.00"
Department of Health,Chelsea & Westminster NHS Foundation Trust,13/07/2023,Image Exchange Portal,Radiology,Medica Reporting Ltd (Medica Group),SI106704,"58,283.50"
Department of Health,Chelsea & Westminster NHS Foundation Trust,18/07/2023,Drugs,Chelsea Pharmacy,Gilead Sciences Ltd,4410251148,"104,714.64"
Department of Health,Chelsea & Westminster NHS Foundation Trust,18/07/2023,Clinical Supplies,Divisional Areas,Nhs Supply Chain Roarp (101),1124047710B,"138,895.14"
Department of Health,Chelsea & Westminster NHS Foundation Trust,18/07/2023,Clinical Supplies,Divisional Areas,Nhs Supply Chain Roarp (101),1124047710A,"-138,531.10"
Department of Health,Chelsea & Westminster NHS Foundation Trust,18/07/2023,Clinical Supplies,Divisional Areas,Nhs Supply Chain Roarp (101),1124027768B,"135,919.42"
Department of Health,Chelsea & Westminster NHS Foundation Trust,18/07/2023,Clinical Supplies,Divisional Areas,Nhs Supply Chain Roarp (101),1124027768A,"-135,505.76"
Department of Health,Chelsea & Westminster NHS Foundation Trust,18/07/2023,Equipment Expenditure,Nuclear Medicine,Siemens Healthcare Ltd,1051139717,"42,963.73"
Department of Health,Chelsea & Westminster NHS Foundation Trust,18/07/2023,Podiatry,Endocrinology Medical Dept,Hounslow And Richmond Community Nhs Trust,82980319,"174,092.00"
Department of Health,Chelsea & Westminster NHS Foundation Trust,18/07/2023,General Maintenance Contracts,Trust-wide,Jca Engineering Limited,INV-N10160,"54,169.94"
Department of Health,Chelsea & Westminster NHS Foundation Trust,18/07/2023,M.R.I. Scans,Radiology:- Other Scanning,Alliance Medical Limited,AML-216910,"62,938.18"
Department of Health,Chelsea & Westminster NHS Foundation Trust,20/07/2023,Building Expenditure,Switch Gear Replacement,Jca Engineering Limited,INV35910,"43,227.60"
Department of Health,Chelsea & Westminster NHS Foundation Trust,20/07/2023,General Computer Software,Information,University Hospitals Birmingham Nhs Ft,OP/B012391,"30,000.00"
Department of Health,Chelsea & Westminster NHS Foundation Trust,20/07/2023,Drugs,Chelsea Pharmacy,Mawdsley- Brooks & Co Ltd,529674,"42,357.00"
Department of Health,Chelsea & Westminster NHS Foundation Trust,20/07/2023,Drugs,West Middlesex Pharmacy,Alloga Uk Limited,SIN103827533,"27,000.00"
Department of Health,Chelsea & Westminster NHS Foundation Trust,20/07/2023,Clinical Supplies,Divisional Areas,Nhs Supply Chain Roarp (101),1124075749,"139,183.04"
Department of Health,Chelsea & Westminster NHS Foundation Trust,20/07/2023,Clinical Supplies,Divisional Areas,Nhs Supply Chain Roarp (101),1124075147,"92,948.44"
Department of Health,Chelsea & Westminster NHS Foundation Trust,20/07/2023,Clinical Supplies,Divisional Areas,Nhs Supply Chain Roarp (101),1124080916,"29,977.55"
Department of Health,Chelsea & Westminster NHS Foundation Trust,20/07/2023,Clinical Supplies,Divisional Areas,Nhs Supply Chain Roarp (101),1124080955,"61,660.02"
Department of Health,Chelsea & Westminster NHS Foundation Trust,20/07/2023,External Audit Fees,Director Of Finance,Deloitte Llp,8003712418,"77,019.00"
Department of Health,Chelsea & Westminster NHS Foundation Trust,24/07/2023,General Suspense Account,Trust-wide,Portland Clinical Ltd,1894,"-26,227.80"
Department of Health,Chelsea & Westminster NHS Foundation Trust,24/07/2023,General Suspense Account,Trust-wide,Portland Clinical Ltd,1397,"31,600.80"
Department of Health,Chelsea & Westminster NHS Foundation Trust,24/07/2023,General Suspense Account,Trust-wide,Portland Clinical Ltd,1217,"28,091.70"
Department of Health,Chelsea & Westminster NHS Foundation Trust,24/07/2023,General Suspense Account,Trust-wide,Portland Clinical Ltd,1313,"26,227.80"
Department of Health,Chelsea & Westminster NHS Foundation Trust,24/07/2023,General Suspense Account,Trust-wide,Portland Clinical Ltd,1890,"-31,600.80"
Department of Health,Chelsea & Westminster NHS Foundation Trust,24/07/2023,General Suspense Account,Trust-wide,Portland Clinical Ltd,1891,"-28,091.70"
Department of Health,Chelsea & Westminster NHS Foundation Trust,25/07/2023,Building Expenditure,New Patient Discharge Lounge,Bywest Ltd,INV000073,"38,641.96"
Department of Health,Chelsea & Westminster NHS Foundation Trust,25/07/2023,Building Expenditure,QMMU Bed Lift Project,Ensigna Construction Ltd,5844,"107,088.00"
Department of Health,Chelsea & Westminster NHS Foundation Trust,25/07/2023,Building Expenditure,Fire Sprinkler Project,Trail Group Limited,TS-APP-4316,"51,341.00"
Department of Health,Chelsea & Westminster NHS Foundation Trust,25/07/2023,Building Expenditure,Fire Sprinkler Project,Trail Group Limited,TS-APP-4345,"114,429.41"
Department of Health,Chelsea & Westminster NHS Foundation Trust,25/07/2023,Building Expenditure,Fire Sprinkler Project,Trail Group Limited,TS-APP-4346,"142,553.42"
Department of Health,Chelsea & Westminster NHS Foundation Trust,25/07/2023,Building Expenditure,Fire Sprinkler Project,Trail Group Limited,TS-CR-4345,"-26,923.07"
Department of Health,Chelsea & Westminster NHS Foundation Trust,25/07/2023,General Computer Software,E-Rostering,Locum Tap Ltd T/A Patchwork Health,INV-1069,"35,006.40"
Department of Health,Chelsea & Westminster NHS Foundation Trust,25/07/2023,I.T. Expenditure,Trust-wide,Imperial College Healthcare Nhs Trust,H0316474,"31,399.47"
Department of Health,Chelsea & Westminster NHS Foundation Trust,25/07/2023,M.S.S.E. - Routine Purchases,Respiratory Management,Baywater Healthcare Uk Ltd,237287,"29,479.27"
Department of Health,Chelsea & Westminster NHS Foundation Trust,25/07/2023,M.S.S.E. - Routine Purchases,Respiratory Management,Baywater Healthcare Uk Ltd,237928,"28,644.90"
Department of Health,Chelsea & Westminster NHS Foundation Trust,25/07/2023,Minor Works,Trust-wide,Bywest Ltd,INV000076,"29,830.94"
Department of Health,Chelsea & Westminster NHS Foundation Trust,25/07/2023,Recruitment Expenses,Director Of Nursing,Medox Paramedical Ltd T/ S  Drake Medox,305015,"43,680.00"
Department of Health,Chelsea & Westminster NHS Foundation Trust,25/07/2023,Service Charge - Core Pfi,Pfi Unitary Payment,Bywest Ltd,INV000070,"2,032,975.10"
Department of Health,Chelsea & Westminster NHS Foundation Trust,25/07/2023,Services From Non Nhs Org,General Surgery,Rostra Healthcare Ltd,30006230081/CW,"32,302.67"
Department of Health,Chelsea & Westminster NHS Foundation Trust,25/07/2023,Drugs,Chelsea Pharmacy,Alloga Uk Limited,SIN103832793,"36,000.00"
Department of Health,Chelsea & Westminster NHS Foundation Trust,25/07/2023,Drugs,Chelsea Pharmacy,Bayer Plc,824C502857,"27,373.68"
Department of Health,Chelsea & Westminster NHS Foundation Trust,25/07/2023,Drugs,Chelsea Pharmacy,Gilead Sciences Ltd,4410251838,"45,583.20"
Department of Health,Chelsea & Westminster NHS Foundation Trust,25/07/2023,Clinical Supplies,Divisional Areas,Nhs Supply Chain Roarp (101),1124084231,"89,702.39"
Department of Health,Chelsea & Westminster NHS Foundation Trust,25/07/2023,Clinical Supplies,Divisional Areas,Nhs Supply Chain Roarp (101),1124088218,"43,495.43"
Department of Health,Chelsea & Westminster NHS Foundation Trust,25/07/2023,Clinical Supplies,Divisional Areas,Nhs Supply Chain Roarp (101),1124088258,"90,068.51"
Department of Health,Chelsea & Westminster NHS Foundation Trust,25/07/2023,Clinical Supplies,Divisional Areas,Nhs Supply Chain Roarp (101),1124085156B,"141,047.27"
Department of Health,Chelsea & Westminster NHS Foundation Trust,25/07/2023,It Shared Service,Ict - Shared Services Project,Charterhouse Voice And Data  Ltd,SECINV000001639,"114,000.00"
Department of Health,Chelsea & Westminster NHS Foundation Trust,25/07/2023,It Shared Service,Ict - Shared Services Project,Wifi Spark Ltd,INV-023467,"29,932.56"
Department of Health,Chelsea & Westminster NHS Foundation Trust,25/07/2023,It Shared Service,Sphere Insourcing,Bytes Software Services Ltd,1126262,"128,180.90"
Department of Health,Chelsea & Westminster NHS Foundation Trust,25/07/2023,Soft Services,Trust-wide,Iss Mediclean Limited,SI3567098,"84,002.24"
Department of Health,Chelsea & Westminster NHS Foundation Trust,25/07/2023,Soft Services,Trust-wide,Iss Mediclean Limited,SI3567744,"2,648,814.59"
Department of Health,Chelsea & Westminster NHS Foundation Trust,25/07/2023,Soft Services,Trust-wide,Iss Mediclean Limited,SI3567969,"62,877.82"
Department of Health,Chelsea & Westminster NHS Foundation Trust,25/07/2023,Donations & Subscriptions,Chief Executives Office,Nhs Providers,8043,"33,617.00"
Department of Health,Chelsea & Westminster NHS Foundation Trust,25/07/2023,Donations & Subscriptions,Staff Benefits & Well Being,My Family Care,10003640,"128,559.00"
Department of Health,Chelsea & Westminster NHS Foundation Trust,25/07/2023,Translation Services,Trust-wide,Da Languages Ltd,I0321493,"28,509.14"
Department of Health,Chelsea & Westminster NHS Foundation Trust,25/07/2023,Postage,Clin Admin Management Team,Synertec Ltd,QS352239,"25,982.98"
Department of Health,Chelsea & Westminster NHS Foundation Trust,25/07/2023,Inpatient and Day Case Activity,Radiology Department,Medica Reporting Ltd (Medica Group),SI107080,"73,142.00"
Department of Health,Chelsea & Westminster NHS Foundation Trust,25/07/2023,Equipment Expenditure,Theatres,Anetic Aid,323466,"82,842.05"
Department of Health,Chelsea & Westminster NHS Foundation Trust,25/07/2023,Neyber Financial Wellbeing Ben,Trust-wide,Salary Finance Ltd,SD JULY 2023,"29,845.60"
Department of Health,Chelsea & Westminster NHS Foundation Trust,25/07/2023,Drugs,Chelsea Pharmacy,Cw Medicines Ltd,N0054919,"1,384,272.82"
Department of Health,Chelsea & Westminster NHS Foundation Trust,25/07/2023,Drugs,Chelsea Pharmacy,Cw Medicines Ltd,N0054916,"1,330,306.99"
Department of Health,Chelsea & Westminster NHS Foundation Trust,25/07/2023,Internal Audit Fees,Director Of Finance,Bdo Llp,INV-00377536,"38,250.00"
Department of Health,Chelsea & Westminster NHS Foundation Trust,25/07/2023,Nw London Pathology Contract,Trust-wide,North West London Pathology,H0312872,"-192,748.00"
Department of Health,Chelsea & Westminster NHS Foundation Trust,25/07/2023,Nw London Pathology Contract,Trust-wide,North West London Pathology,H0312501,"28,250.00"
Department of Health,Chelsea & Westminster NHS Foundation Trust,25/07/2023,Nw London Pathology Contract,Trust-wide,North West London Pathology,H0314650,"28,250.00"
Department of Health,Chelsea & Westminster NHS Foundation Trust,25/07/2023,Nw London Pathology Contract,Trust-wide,North West London Pathology,H0315202,"-778,905.00"
Department of Health,Chelsea & Westminster NHS Foundation Trust,25/07/2023,Nw London Pathology Contract,Trust-wide,North West London Pathology,H0315211,"31,144.00"
Department of Health,Chelsea & Westminster NHS Foundation Trust,25/07/2023,Nw London Pathology Contract,Trust-wide,North West London Pathology,H0315201,"-806,011.00"
Department of Health,Chelsea & Westminster NHS Foundation Trust,25/07/2023,Nw London Pathology Contract,Trust-wide,North West London Pathology,H0315200,"-2,448,206.00"
Department of Health,Chelsea & Westminster NHS Foundation Trust,25/07/2023,Nw London Pathology Contract,Trust-wide,North West London Pathology,H0315209,"2,521,848.00"
Department of Health,Chelsea & Westminster NHS Foundation Trust,25/07/2023,Nw London Pathology Contract,Trust-wide,North West London Pathology,H0315206,"-178,000.00"
Department of Health,Chelsea & Westminster NHS Foundation Trust,25/07/2023,Nw London Pathology Contract,Trust-wide,North West London Pathology,H0316058,"2,823,087.00"
Department of Health,Chelsea & Westminster NHS Foundation Trust,25/07/2023,Nw London Pathology Contract,Trust-wide,North West London Pathology,H0316060,"31,144.00"
Department of Health,Chelsea & Westminster NHS Foundation Trust,25/07/2023,Nw London Pathology Contract,Trust-wide,North West London Pathology,H0316062,"31,144.00"
Department of Health,Chelsea & Westminster NHS Foundation Trust,25/07/2023,Nw London Pathology Contract,Trust-wide,North West London Pathology,H0316781,"-151,033.00"
Department of Health,Chelsea & Westminster NHS Foundation Trust,25/07/2023,Nw London Pathology Contract,Trust-wide,North West London Pathology,H0317160,"2,807,269.00"
Department of Health,Chelsea & Westminster NHS Foundation Trust,25/07/2023,Radiology Maintenance Contract,Radiology,Nhs Supply Chain Maintenance (201),2124002602,"97,695.45"
Department of Health,Chelsea & Westminster NHS Foundation Trust,25/07/2023,Soft Services,Trust-wide,Iss Mediclean Limited,SI3567517,"84,232.25"
Department of Health,Chelsea & Westminster NHS Foundation Trust,25/07/2023,Commercial Rents and Service Charge,34-35 Dean Street,Dalness Estates Ltd,INV-1082,"48,000.00"
Department of Health,Chelsea & Westminster NHS Foundation Trust,25/07/2023,Sterile Services Contract,Sterile Services Dept,Ihss Limited,IHSN102815,"53,387.38"
Department of Health,Chelsea & Westminster NHS Foundation Trust,25/07/2023,Sterile Services Contract,Sterile Services Dept,Ihss Limited,IHSN102824,"55,310.16"
Department of Health,Chelsea & Westminster NHS Foundation Trust,25/07/2023,X-Ray Equipment Contracts,Radiology,Nhs Supply Chain Maintenance (201),2124002639,"275,704.47"
Department of Health,Chelsea & Westminster NHS Foundation Trust,25/07/2023,X-Ray Equipment Contracts,Radiology,Nhs Supply Chain Maintenance (201),2124002604,"37,425.10"
Department of Health,Chelsea & Westminster NHS Foundation Trust,25/07/2023,Cw Erly Ret Prov Staff Pension,Trust-wide,Nhs Business Servic.Authority- Ea Code Ea4049,2000008820,"43,144.91"
Department of Health,Chelsea & Westminster NHS Foundation Trust,25/07/2023,Image Exchange Portal,Radiology,Medica Reporting Ltd (Medica Group),SI107033,"62,880.00"
Department of Health,Chelsea & Westminster NHS Foundation Trust,25/07/2023,Recharges � Pay and non-pay costs,Cerner Project,Imperial College Healthcare Nhs Trust,H0316473,"29,690.96"
Department of Health,Chelsea & Westminster NHS Foundation Trust,25/07/2023,Recharges � Pay and non-pay costs,Cerner Project,Imperial College Healthcare Nhs Trust,H0316472,"31,322.40"
Department of Health,Chelsea & Westminster NHS Foundation Trust,25/07/2023,Recharges � Pay and non-pay costs,Cerner Project,Imperial College Healthcare Nhs Trust,H0316463,"91,933.07"
Department of Health,Chelsea & Westminster NHS Foundation Trust,25/07/2023,Recharges � Pay and non-pay costs,Cerner Project,Imperial College Healthcare Nhs Trust,H0316468,"60,329.43"
Department of Health,Chelsea & Westminster NHS Foundation Trust,25/07/2023,Recharges � Pay and non-pay costs,Cerner Project,Imperial College Healthcare Nhs Trust,H0316469,"94,444.65"
Department of Health,Chelsea & Westminster NHS Foundation Trust,25/07/2023,Recharges � Pay and non-pay costs,Cerner Project,Imperial College Healthcare Nhs Trust,H0316470,"57,483.45"
Department of Health,Chelsea & Westminster NHS Foundation Trust,25/07/2023,Recharges � Pay and non-pay costs,Cerner Project,Imperial College Healthcare Nhs Trust,H0316464,"38,862.49"
Department of Health,Chelsea & Westminster NHS Foundation Trust,25/07/2023,Soft Services,Trust-wide,Iss Mediclean Limited,SI3567745,"64,064.16"
Department of Health,Chelsea & Westminster NHS Foundation Trust,25/07/2023,Specialty Registrar Ft (Str1),Hee Income,Royal Free London Nhs Foundation Trust,I0220039,"174,459.78"
Department of Health,Chelsea & Westminster NHS Foundation Trust,25/07/2023,Dispensing Fee,Pharmacy Outpatients,Cw Medicines Ltd,N0054921,"103,516.56"
Department of Health,Chelsea & Westminster NHS Foundation Trust,25/07/2023,Dispensing Fee,Pharmacy Outpatients,Cw Medicines Ltd,C0009134,"-102,142.77"
Department of Health,Chelsea & Westminster NHS Foundation Trust,26/07/2023,Nhs Blood Products,Path Central Purchasing,Nhs Blood Transplant,7015442,"25,920.99"
Department of Health,Chelsea & Westminster NHS Foundation Trust,26/07/2023,Nhs Blood Products,Path Central Purchasing,Nhs Blood Transplant,7016134,"74,041.55"
Department of Health,Chelsea & Westminster NHS Foundation Trust,26/07/2023,Nhs Blood Products,Path Central Purchasing,Nhs Blood Transplant,7016146,"66,397.67"
Department of Health,Chelsea & Westminster NHS Foundation Trust,26/07/2023,Rates & Council Tax,Dean St Facilities,Westminster City Council,402284754JUL23,"29,260.00"
Department of Health,Chelsea & Westminster NHS Foundation Trust,26/07/2023,Rates & Council Tax,Chelsea Site,Royal Borough Of Kensington And Chelsea,629848928JUL23,"248,444.00"
Department of Health,Chelsea & Westminster NHS Foundation Trust,26/07/2023,Rates & Council Tax,West Middlesex site,London Borough Of Hounslow,921515548AJUL23,"106,400.00"
Department of Health,Chelsea & Westminster NHS Foundation Trust,26/07/2023,Staff Flow Central Account,Trust-wide,Liaison Financial Services Ltd,14/2023-24,"101,217.20"
Department of Health,Chelsea & Westminster NHS Foundation Trust,26/07/2023,Staff Flow Central Account,Trust-wide,Liaison Financial Services Ltd,15/2023-24,"84,980.75"
Department of Health,Chelsea & Westminster NHS Foundation Trust,26/07/2023,Staff Flow Central Account,Trust-wide,Liaison Financial Services Ltd,16/2023-24,"91,803.44"
Department of Health,Chelsea & Westminster NHS Foundation Trust,26/07/2023,Staff Flow Central Account,Trust-wide,Liaison Financial Services Ltd,17/2023-24,"95,586.52"
Department of Health,Chelsea & Westminster NHS Foundation Trust,26/07/2023,Clinical Supplies,Divisional Areas,Nhs Supply Chain Roarp (101),1124073598,"32,505.84"
Department of Health,Chelsea & Westminster NHS Foundation Trust,26/07/2023,Insurance Contributions,Trust-wide,Nhs Resolution C/O Nhs Litigation Authority,SICX412696,"4,103,291.00"
Department of Health,Chelsea & Westminster NHS Foundation Trust,26/07/2023,Service Charge - Variation Pfi,Pfi Unitary Payment,Bywest Ltd,INV000071,"693,254.87"
